[Event "EYCC 2017"]
[Site "Mamaia"]
[Date "2017.09.11"]
[Round "6"]
[White "Represa Perez, Mireya"]
[Black "Sosa Suarez, Carla Cristina"]
[Result "1/2-1/2"]
[ECO "C10"]
[WhiteElo "2082"]
[BlackElo "1930"]
[Annotator "NA RC"]
[PlyCount "123"]
[EventDate "2017.??.??"]
[EventType "swiss"]
[EventCountry "ROU"]
[SourceTitle "playchess.com"]
[Source "ChessBase"]
[SourceQuality "1"]
[TimeControl "40/5400+30:1800+30"]

1. e4 {[%emt 0:00:00]} e6 {[%emt 0:00:04]} 2. d4 {[%emt 0:00:00]} d5 {[%emt 0:00:04]} 3. Nc3 {[%emt 0:00:00]} Nc6 {[%emt 0:00:07]} 4. Nf3 {[%emt 0:00:00]} Nf6 {[%emt 0:00:16]} 5. Bg5 {[%emt 0:00:01]} Be7 {[%emt 0:08:38]} 6. Bxf6 {[%emt 0:05:21]} Bxf6 {[%emt 0:00:22]} 7. Bb5 {[%emt 0:02:39]} O-O {[%emt 0:03:56]} 8. O-O {[%emt 0:04:33]} a6 {[%emt 0:04:24]} 9. Bxc6 {[%emt 0:00:32]} bxc6 {[%emt 0:00:06]} 10. e5 {[%emt 0:01:04] C10: French with 3 Nc3: Unusual Black 3rd moves and 3...dxe4} (10. Re1 Rb8 11. e5 Be7 12. Na4 f6 13. b3 f5 14. Qd3 Kh8 15. c4 a5 16. cxd5 cxd5 17. Rac1 g5 {1-0 (33) Guliyev,N (2690)-Leruste,G (2270) Le Port Marly 2012}) 10... Be7 {[%emt 0:00:08]} 11. Na4 {[%emt 0:00:39]} Rb8 $146 {[%emt 0:08:04]} ({Predecessor:} 11... a5 12. Re1 f6 13. a3 Bd7 14. Qd3 f5 15. Nd2 f4 16. Qc3 Qe8 17. Rad1 Qb8 {0-1 (54) Egger Mancilla,J (2431)-Andueza Quezada,D (2176) Santiago de Chile 2007}) 12. c3 {[%emt 0:06:58]} f6 {[%emt 0:07:01]} 13. exf6 {[%emt 0:03:05]} gxf6 {[%emt 0:03:01]} 14. Re1 {[%emt 0:04:25]} Qe8 {[%emt 0:03:15]} 15. Qe2 {[%emt 0:10:51]} Qg6 {[%emt 0:04:05]} 16. b4 {[%emt 0:03:12]} Bd7 {[%emt 0:05:30]} 17. Nb2 {[%emt 0:07:01]} Rb6 {[%emt 0:07:56]} 18. Nd3 {[%emt 0:00:35]} Bd6 {[%emt 0:04:44]} 19. Nd2 {[%emt 0:08:46]} Rbb8 {[%emt 0:07:02]} 20. Nb3 {[%emt 0:04:06]} Rbe8 {[%emt 0:01:47]} 21. Nbc5 {[%emt 0:00:08]} Bc8 {[%emt 0:00:39]} 22. f4 {[%emt 0:01:41]} Re7 {[%emt 0:05:08]} 23. Rf1 {[%emt 0:06:06]} Rfe8 {[%emt 0:01:09]} 24. Rf3 {[%emt 0:00:44]} Kh8 {[%emt 0:01:35]} 25. Re3 {[%emt 0:01:25]} Qf5 {[%emt 0:01:52]} 26. Rf1 {[%emt 0:01:17]} Rg8 {[%emt 0:00:29]} 27. Kh1 {[%emt 0:02:23]} Reg7 {[%emt 0:02:05]} 28. g3 {[%emt 0:02:48]} Qh3 {[%emt 0:00:49]} 29. Qg2 {[%emt 0:03:52]} Qh6 {[%emt 0:01:25]} 30. Qf2 {[%emt 0:02:57]} Qh3 {[%emt 0:01:48]} 31. Rfe1 {[%emt 0:01:01]} h5 {[%emt 0:00:42]} 32. Qf1 {[%emt 0:03:51]} Qf5 {[%emt 0:00:54]} 33. Qe2 {[%emt 0:02:56]} h4 {[%emt 0:02:44]} 34. Rf3 {[%emt 0:09:06]} hxg3 {[%emt 0:03:02]} 35. hxg3 {[%emt 0:00:05]} Rh7+ {[%emt 0:02:52]} 36. Kg1 {[%emt 0:00:28]} Rh3 {[%emt 0:01:20]} 37. Qg2 {[%emt 0:00:40]} Qg4 {[%emt 0:01:07]} 38. Nf2 {[%emt 0:02:00]} Qxg3 {[%emt 0:01:47]} 39. Rxg3 {[%emt 0:00:44]} Rhxg3 {[%emt 0:00:03]} 40. Qxg3 {[%emt 0:00:00]} Rxg3+ {[%emt 0:00:05]} 41. Kf1 {[%emt 0:00:48]} Rxc3 {[%emt 0:07:06]} 42. Nfd3 {[%emt 0:06:16]} Kg7 $19 {[%emt 0:07:27]} 43. f5 $2 {[%emt 0:02:42]} (43. Kf2) 43... e5 {[%emt 0:06:37]} 44. dxe5 {[%emt 0:01:20]} fxe5 {[%emt 0:00:19]} 45. Nxe5 {[%emt 0:02:51]} Bxc5 {[%emt 0:00:26]} 46. bxc5 {[%emt 0:00:06]} Rxc5 {[%emt 0:00:32]} 47. Nd3 {[%emt 0:00:40]} Rc3 {[%emt 0:01:09]} 48. Re7+ {[%emt 0:00:52]} Kf6 {[%emt 0:00:06]} 49. Rxc7 {[%emt 0:00:06]} Bxf5 {[%emt 0:01:34]} 50. Nb4 {[%emt 0:00:11]} Ke6 {[%emt 0:03:51]} 51. Rxc6+ {[%emt 0:00:50]} Rxc6 {[%emt 0:01:05]} 52. Nxc6 {[%emt 0:00:03]} Bb1 {[%emt 0:00:47]} 53. Nb4 {[%emt 0:05:50]} d4 {[%emt 0:02:54]} 54. Ke1 {[%emt 0:01:12]} a5 {[%emt 0:03:09]} 55. Nc6 {[%emt 0:00:17]} Kd5 {[%emt 0:00:55]} 56. Nxa5 {[%emt 0:00:12]} Bxa2 {[%emt 0:00:08]} 57. Kd2 {[%emt 0:00:33]} Kc5 {[%emt 0:00:33]} 58. Nb7+ {[%emt 0:00:12]} Kc6 {[%emt 0:00:50]} 59. Kd3 Kd5 {[%emt 0:00:16]} 60. Na5 {[%emt 0:01:08]} Bb1+ {[%emt 0:00:15]} 61. Kd2 {[%emt 0:00:24]} d3 {[%emt 0:00:24]} 62. Nb3 {[%emt 0:00:08]} 1/2-1/2

[Event "EYCC 2017"]
[Site "Mamaia"]
[Date "2017.09.11"]
[Round "6"]
[White "Chyzy, Jakub"]
[Black "Oglaza, Oskar"]
[Result "1-0"]
[ECO "B53"]
[WhiteElo "2060"]
[BlackElo "2198"]
[Annotator "RC"]
[PlyCount "69"]
[EventDate "2017.??.??"]
[EventType "swiss"]
[EventCountry "ROU"]
[SourceTitle "playchess.com"]
[Source "ChessBase"]
[SourceQuality "1"]
[TimeControl "40/5400+30:1800+30"]

1. e4 {[%emt 0:00:00]} c5 {[%emt 0:00:20]} 2. Nf3 {[%emt 0:00:00]} d6 {[%emt 0:00:17]} 3. d4 {[%emt 0:00:00]} cxd4 {[%emt 0:00:05]} 4. Qxd4 {[%emt 0:00:00]} Nc6 {[%emt 0:00:05]} 5. Bb5 {[%emt 0:00:00]} a6 {[%emt 0:00:04]} 6. Bxc6+ {[%emt 0:01:38]} bxc6 {[%emt 0:00:07]} 7. c4 {[%emt 0:01:00]} e5 {[%emt 0:00:30]} 8. Qd3 {[%emt 0:00:36]} Be7 {[%emt 0:00:37]} 9. Nc3 {[%emt 0:01:09]} Qc7 {[%emt 0:00:19]} 10. O-O {[%emt 0:00:41]} Nf6 {[%emt 0:00:29]} 11. b4 {[%emt 0:23:24]} O-O {[%emt 0:04:16]} 12. Rd1 {[%emt 0:01:56]} Rd8 {[%emt 0:01:16]} 13. Rb1 {[%emt 0:02:45]} Bg4 {[%emt 0:10:41]} 14. a4 {[%emt 0:03:04]} Rac8 {[%emt 0:22:09]} 15. a5 {[%emt 0:08:45]} Nd7 {[%emt 0:11:11]} 16. Be3 {[%emt 0:09:40]} f5 {[%emt 0:03:52]} 17. b5 {[%emt 0:19:05]} f4 {[%emt 0:17:08]} 18. bxc6 {[%emt 0:08:50]} Qxc6 {[%emt 0:00:12]} 19. Nd5 {[%emt 0:01:03]} Bf8 {[%emt 0:03:54]} 20. Bb6 {[%emt 0:02:57]} Nc5 {[%emt 0:03:19]} 21. Bxc5 {[%emt 0:10:46]} Qxc5 {[%emt 0:03:11]} 22. Nb6 {[%emt 0:00:19]} Be6 {[%emt 0:13:33]} 23. Ng5 {[%emt 0:01:43]} Bxc4 {[%emt 0:03:24]} 24. Qh3 {[%emt 0:00:09]} h6 {[%emt 0:00:05]} 25. Ne6 {[%emt 0:00:14]} Bxe6 {[%emt 0:00:48]} 26. Qxe6+ {[%emt 0:00:06]} Kh8 {[%emt 0:00:05]} 27. Nxc8 {[%emt 0:01:22]} Rxc8 {[%emt 0:00:06]} 28. h3 {[%emt 0:00:21]} Rd8 {[%emt 0:01:31]} 29. Rdc1 {[%emt 0:02:06]} Qxa5 {[%emt 0:00:40]} 30. Rc8 {[%emt 0:00:08]} Be7 {[%emt 0:00:41]} 31. Rbb8 {[%emt 0:00:28]} Qe1+ {[%emt 0:00:32]} 32. Kh2 {[%emt 0:00:06]} Rxc8 {[%emt 0:00:05]} 33. Rxc8+ {[%emt 0:00:05]} Kh7 {[%emt 0:00:04]} 34. Qf5+ {[%emt 0:00:07]} g6 {[%emt 0:00:05]} 35. Qf7# {[%emt 0:00:04]} 1-0

[Event "EYCC 2017"]
[Site "Mamaia"]
[Date "2017.09.11"]
[Round "6"]
[White "Berdnyk, Mariia"]
[Black "Krasteva, Beloslava"]
[Result "1/2-1/2"]
[ECO "B93"]
[WhiteElo "2055"]
[BlackElo "2048"]
[Annotator "NA RC"]
[PlyCount "94"]
[EventDate "2017.??.??"]
[EventType "swiss"]
[EventCountry "ROU"]
[SourceTitle "playchess.com"]
[Source "ChessBase"]
[SourceQuality "1"]
[TimeControl "40/5400+30:1800+30"]

1. e4 {[%emt 0:00:00]} c5 {[%emt 0:00:11]} 2. Nf3 {[%emt 0:00:00]} d6 {[%emt 0:00:13]} 3. d4 {[%emt 0:00:00]} cxd4 {[%emt 0:00:12]} 4. Nxd4 {[%emt 0:00:00]} Nf6 {[%emt 0:00:30]} 5. Nc3 {[%emt 0:00:00]} a6 {[%emt 0:00:16]} 6. f4 {[%emt 0:00:00]} e6 {[%emt 0:02:59]} 7. Qf3 {[%emt 0:00:19]} Qc7 {[%emt 0:04:26]} 8. g4 {[%emt 0:08:27]} Nc6 {[%emt 0:04:28]} 9. Nb3 {[%emt 0:05:34]} b5 {[%emt 0:04:27] B82: Sicilian Scheveningen: 6 f4} 10. g5 {[%emt 0:02:54]} Nd7 {[%emt 0:01:32]} 11. Be3 {[%emt 0:01:59]} (11. Bd3 Bb7 12. Bd2 Nc5 13. O-O-O Nxd3+ 14. Qxd3 b4 15. Ne2 a5 16. Nbd4 Ba6 17. Qb3 e5 18. fxe5 dxe5 19. Nxc6 Qxc6 20. Rhe1 Rc8 21. Kb1 Bc4 22. Qf3 {½-½ (22) Ganguly,S (2579)-Deepan Chakkravarthy,J (2491) Vishakapatnam 2008}) 11... Bb7 {[%emt 0:02:17]} 12. Bd3 {[%emt 0:02:41]} Be7 {[%emt 0:05:35]} 13. Qf2 {[%emt 0:03:18]} Rc8 $146 {[%emt 0:12:25]} ({Find the theoretical novelty and annotate with similar games:} 13... Nb4 14. O-O g6 15. a4 O-O 16. axb5 Nxd3 17. cxd3 axb5 18. Nxb5 Qb8 {1-0 (26) Bakre,T (2455)-Hegde,R (2233) Mumbai 2008}) 14. O-O {[%emt 0:07:19]} Qd8 {[%emt 0:13:03]} 15. f5 {[%emt 0:12:12]} exf5 {[%emt 0:06:00]} 16. Qxf5 {[%emt 0:02:32]} Nce5 {[%emt 0:01:51]} 17. Nd5 {[%emt 0:02:13]} O-O {[%emt 0:02:28]} 18. Bd2 {[%emt 0:05:08]} Bxd5 {[%emt 0:05:11]} 19. Ba5 {[%emt 0:10:36]} Qe8 {[%emt 0:05:00]} 20. exd5 {[%emt 0:00:58]} g6 {[%emt 0:03:13]} 21. Qf4 {[%emt 0:02:34]} f6 {[%emt 0:02:25]} 22. Nd4 {[%emt 0:03:44]} fxg5 {[%emt 0:01:25]} 23. Qg3 {[%emt 0:00:24]} Nf6 {[%emt 0:05:24]} 24. Ne6 {[%emt 0:03:00]} Nh5 {[%emt 0:02:34]} 25. Qe3 {[%emt 0:00:55]} Rxf1+ {[%emt 0:02:25]} 26. Rxf1 {[%emt 0:00:11]} Nf4 {[%emt 0:01:12]} 27. Nxf4 {[%emt 0:03:41]} gxf4 {[%emt 0:00:07]} 28. Qxf4 {[%emt 0:00:29]} Qd7 {[%emt 0:01:32]} 29. Bc3 {[%emt 0:02:48]} Rf8 {[%emt 0:00:34]} 30. Qg3 {[%emt 0:01:20]} Rxf1+ {[%emt 0:02:06]} 31. Bxf1 {[%emt 0:01:07]} Qf5 {[%emt 0:03:59]} 32. Bh3 $15 {[%emt 0:05:56]} Qe4 {[%emt 0:05:25]} 33. Be6+ {[%emt 0:01:26]} Kf8 {[%emt 0:00:29]} 34. Qf2+ {[%emt 0:02:24]} Qf3 {[%emt 0:00:54]} 35. Qxf3+ {[%emt 0:00:52]} Nxf3+ {[%emt 0:00:05]} 36. Kf2 {[%emt 0:00:14]} Ng5 {[%emt 0:00:52]} 37. Bc8 {[%emt 0:05:48]} Ne4+ {[%emt 0:00:32]} 38. Ke2 {[%emt 0:01:03]} Nxc3+ {[%emt 0:00:25]} 39. bxc3 {[%emt 0:00:14]} a5 {[%emt 0:00:20]} 40. a3 {[%emt 0:00:00]} Bd8 {[%emt 0:00:46]} 41. Bd7 {[%emt 0:00:41]} Bb6 {[%emt 0:03:50]} 42. Bxb5 {[%emt 0:00:12]} a4 {[%emt 0:02:27]} 43. Bxa4 {[%emt 0:01:06]} Bc5 {[%emt 0:00:07]} 44. Kf3 {[%emt 0:01:05]} Bxa3 {[%emt 0:00:30]} 45. Kg4 {[%emt 0:00:22]} Kg7 {[%emt 0:00:39]} 46. c4 {[%emt 0:00:42]} Kf6 {[%emt 0:00:25]} 47. Bd7 {[%emt 0:00:33]} Bc5 {[%emt 0:00:12]} 1/2-1/2

[Event "EYCC 2017"]
[Site "Mamaia"]
[Date "2017.09.11"]
[Round "6"]
[White "Asatryan, Sona"]
[Black "Avetisyan, Mariam"]
[Result "1-0"]
[ECO "C06"]
[WhiteElo "2043"]
[BlackElo "1976"]
[Annotator "NA RC"]
[PlyCount "109"]
[EventDate "2017.??.??"]
[EventType "swiss"]
[EventCountry "ROU"]
[SourceTitle "playchess.com"]
[Source "ChessBase"]
[SourceQuality "1"]
[TimeControl "40/5400+30:1800+30"]

1. e4 {[%emt 0:00:00]} e6 {[%emt 0:00:12]} 2. d4 {[%emt 0:00:00]} d5 {[%emt 0:00:03]} 3. Nd2 {[%emt 0:00:27]} Nf6 {[%emt 0:00:15]} 4. e5 {[%emt 0:00:16]} Nfd7 {[%emt 0:00:06]} 5. Bd3 {[%emt 0:00:24]} c5 {[%emt 0:00:14]} 6. c3 {[%emt 0:00:04]} Nc6 {[%emt 0:00:02]} 7. Ne2 {[%emt 0:00:09]} cxd4 {[%emt 0:00:11]} 8. cxd4 {[%emt 0:00:04]} f6 {[%emt 0:00:59]} 9. exf6 {[%emt 0:05:24]} Nxf6 {[%emt 0:00:22]} 10. O-O {[%emt 0:00:55]} Bd6 {[%emt 0:00:17]} 11. Nf3 {[%emt 0:00:23]} Qc7 {[%emt 0:00:52]} 12. Bg5 {[%emt 0:00:39]} O-O {[%emt 0:00:29]} 13. Bh4 {[%emt 0:01:43]} Nh5 {[%emt 0:00:52]} 14. Qc2 {[%emt 0:08:10]} h6 {[%emt 0:02:06]} 15. Bh7+ {[%emt 0:03:35] C06: French Tarrasch: 3...Nf6 4 e5 Nfd7 5 Bd3 main lines} Kh8 {[%emt 0:00:19]} 16. Bg6 {[%emt 0:01:24]} Rxf3 {[%emt 0:00:06]} (16... Nf4 17. Nxf4 Rxf4 18. Bg3 Rxf3 19. gxf3 Qe7 20. Rad1 Bd7 21. Qc3 Rf8 22. Bb1 Kg8 {1-0 (41) Artemiev,V (2653)-Onischuk,V (2615) Martuni 2016}) 17. Bxh5 {[%emt 0:00:41]} Rf8 {[%emt 0:00:47]} 18. Bg3 {[%emt 0:03:02]} Bd7 {[%emt 0:00:07]} 19. Qd2 {[%emt 0:05:59]} Be8 {[%emt 0:15:56]} 20. Bg4 {[%emt 0:03:52]} Rf6 $146 {[%emt 0:07:57]} ({Predecessor:} 20... e5 21. dxe5 Nxe5 22. Be6 Bb5 23. Bxd5 {1-0 (58) Silber,K (2049)-Brunner,W (2037) Willingen 2017}) 21. Nc3 {[%emt 0:04:19]} a6 {[%emt 0:08:22]} 22. Rfe1 {[%emt 0:03:22]} Bf7 {[%emt 0:03:44]} 23. Re3 {[%emt 0:11:41]} Bf4 {[%emt 0:04:15]} 24. Qd1 {[%emt 0:05:01]} Rf8 {[%emt 0:16:34]} 25. Ne2 {[%emt 0:05:26]} Bd6 {[%emt 0:02:18]} 26. Rf3 {[%emt 0:06:56]} Rxf3 {[%emt 0:04:07]} 27. Bxf3 {[%emt 0:00:03]} Bg8 {[%emt 0:04:49]} 28. Rc1 {[%emt 0:03:05]} Bxg3 {[%emt 0:04:36]} 29. hxg3 {[%emt 0:01:49]} g5 {[%emt 0:00:03]} 30. Qd2 {[%emt 0:05:36]} Qg7 {[%emt 0:00:15]} 31. Rd1 {[%emt 0:05:10]} Bh7 {[%emt 0:01:14]} 32. Nc3 {[%emt 0:03:30]} Qf6 {[%emt 0:09:35]} (32... g4 $5 {[%cal Rg4f3]} 33. Be2 b5 $11) 33. Qe3 {[%emt 0:05:42]} Kg7 {[%emt 0:02:51]} 34. a3 {[%emt 0:04:51]} Bf5 {[%emt 0:02:00]} 35. b4 {[%emt 0:02:09]} Rc8 {[%emt 0:00:31]} 36. Rd2 {[%emt 0:00:52]} b5 {[%emt 0:00:16]} 37. g4 {[%emt 0:00:55]} Bg6 {[%emt 0:00:35]} 38. Bd1 {[%emt 0:00:30]} Nd8 {[%emt 0:05:45]} 39. Bc2 {[%emt 0:00:35]} Bxc2 {[%emt 0:00:37]} 40. Rxc2 {[%emt 0:00:00]} Rc4 {[%emt 0:00:18]} 41. Rd2 {[%emt 0:06:20]} Nb7 {[%emt 0:03:50]} 42. Ne2 {[%emt 0:02:25]} Nd6 $11 {[%emt 0:00:30]} 43. Ng3 {[%emt 0:00:30]} Kf7 {[%emt 0:00:30]} 44. Nh5 {[%emt 0:00:30]} Qg6 {[%emt 0:00:30]} 45. Qe5 {[%emt 0:00:30]} Nf5 {[%emt 0:00:30]} 46. Rd3 {[%emt 0:00:30]} Nh4 {[%emt 0:00:30]} 47. Qd6 {[%emt 0:00:30]} Kg8 {[%emt 0:00:30]} 48. Qd8+ {[%emt 0:00:30]} Kf7 {[%emt 0:00:30]} 49. Re3 {[%emt 0:00:30]} Rc1+ {[%emt 0:00:30]} 50. Kh2 {[%emt 0:00:30]} Rc2 {[%emt 0:00:30]} 51. Qd7+ {[%emt 0:00:30]} Kf8 {[%emt 0:00:30]} 52. Rxe6 {[%emt 0:00:30]} Nf3+ {[%emt 0:00:30] Re3 [%clk 0:11:20] Nh4 [%clk 0:01:12] Re6 [%clk 0:11:26] Nf3+ [%clk 0:01:07]} 53. Kg3 {[%emt 0:12:15]} Rc3 {[%emt 0:31:14]} 54. Qe7+ {[%emt 0:00:11]} Kg8 55. Rxg6+ 1-0

[Event "EYCC 2017"]
[Site "Mamaia"]
[Date "2017.09.11"]
[Round "6"]
[White "Mironenko, Galina"]
[Black "Zvereva, Margarita"]
[Result "1/2-1/2"]
[ECO "A05"]
[WhiteElo "2035"]
[BlackElo "1790"]
[Annotator "NA RC"]
[PlyCount "103"]
[EventDate "2017.??.??"]
[EventType "swiss"]
[EventCountry "ROU"]
[SourceTitle "playchess.com"]
[Source "ChessBase"]
[SourceQuality "1"]
[TimeControl "40/5400+30:1800+30"]

1. Nf3 {[%emt 0:00:00]} Nf6 {[%emt 0:00:20]} 2. c4 {[%emt 0:00:00]} e6 {[%emt 0:00:10]} 3. g3 {[%emt 0:00:07]} d5 {[%emt 0:00:10]} 4. Bg2 {[%emt 0:00:50]} Be7 {[%emt 0:00:48]} 5. cxd5 {[%emt 0:00:12]} exd5 {[%emt 0:05:38]} 6. O-O {[%emt 0:00:11]} O-O {[%emt 0:00:09]} 7. Qc2 {[%emt 0:00:05] A14: English Opening: 1...e6 with b3 by White} c6 {[%emt 0:05:51]} (7... c5 8. d4 Na6 9. dxc5 Nxc5 10. Rd1 Nce4 11. Ng5 Bf5 12. Nxe4 Bxe4 13. Bxe4 Nxe4 14. Be3 Rc8 {1-0 (61) Ponkratov,P (2604)-Landa,K (2625) Minsk 2015}) 8. d3 {[%emt 0:02:44]} Re8 {[%emt 0:01:38]} 9. b3 {[%emt 0:05:36]} Nbd7 {[%emt 0:02:26]} 10. Bb2 {[%emt 0:00:42]} Nf8 $146 {[%emt 0:01:03]} ({Predecessor:} 10... Bf8 11. Nc3 g6 12. Rad1 Qa5 13. a3 Bg7 14. h3 h6 15. Rfe1 {½-½ (45) Carlino,E-Garcia,C Posadas 2004}) 11. h3 {[%emt 0:04:10]} Ng6 {[%emt 0:08:17]} 12. Nbd2 {[%emt 0:07:08]} Bd7 {[%emt 0:08:09]} 13. e4 {[%emt 0:07:28]} dxe4 {[%emt 0:04:48]} 14. dxe4 {[%emt 0:01:17]} h6 {[%emt 0:14:31]} 15. Rfe1 {[%emt 0:04:10]} Qc8 {[%emt 0:02:24]} 16. Kh2 {[%emt 0:02:29]} Nh7 {[%emt 0:17:29]} 17. Qc3 {[%emt 0:08:44]} Bf8 {[%emt 0:01:14]} 18. Nc4 {[%emt 0:01:49]} Qc7 {[%emt 0:00:49]} 19. Rad1 {[%emt 0:03:00]} Be6 {[%emt 0:05:04]} 20. e5 {[%emt 0:14:18]} Red8 {[%emt 0:08:20]} 21. Nfd2 {[%emt 0:08:48]} Bd5 {[%emt 0:05:29]} 22. Ne4 {[%emt 0:03:51]} Ng5 {[%emt 0:01:45]} 23. Ncd6 {[%emt 0:05:23]} Nxe4 {[%emt 0:01:16]} 24. Nxe4 {[%emt 0:00:30]} Qe7 {[%emt 0:03:18]} 25. Nd6 {[%emt 0:02:01]} Bxg2 {[%emt 0:00:29]} 26. Kxg2 {[%emt 0:00:08]} Qc7 {[%emt 0:01:12]} 27. f4 {[%emt 0:01:39]} Ne7 {[%emt 0:00:35]} 28. Qc4 {[%emt 0:00:38]} Nc8 {[%emt 0:00:27]} 29. Nf5 {[%emt 0:07:56]} Nb6 {[%emt 0:00:23]} 30. Qe4 {[%emt 0:01:19]} Rxd1 {[%emt 0:00:30]} 31. Rxd1 {[%emt 0:00:09]} Re8 {[%emt 0:00:26]} 32. Qf3 {[%emt 0:03:30]} c5 {[%emt 0:00:42]} 33. Nd6 {[%emt 0:01:37]} Bxd6 {[%emt 0:00:32]} 34. exd6 {[%emt 0:02:44]} Qc6 {[%emt 0:00:23]} 35. Qxc6 {[%emt 0:01:21]} bxc6 {[%emt 0:00:01]} 36. Kf2 {[%emt 0:00:48]} Rd8 {[%emt 0:01:06]} 37. Ba3 {[%emt 0:00:26]} Nd7 {[%emt 0:00:30]} 38. Kf3 {[%emt 0:00:21]} Re8 {[%emt 0:00:22]} 39. g4 {[%emt 0:00:38]} Re6 {[%emt 0:00:28]} 40. h4 {[%emt 0:00:00]} f6 {[%emt 0:00:24]} 41. Bb2 {[%emt 0:03:54]} Re8 {[%emt 0:08:29]} 42. f5 {[%emt 0:06:18]} Kf7 {[%emt 0:05:17]} 43. h5 $16 {[%emt 0:07:18]} Kf8 {[%emt 0:13:52]} 44. Ba3 {[%emt 0:01:08]} Re5 {[%emt 0:02:59]} 45. b4 {[%emt 0:02:57]} cxb4 {[%emt 0:01:51]} 46. Bxb4 {[%emt 0:00:15]} Rb5 {[%emt 0:00:28]} 47. Bc3 {[%emt 0:01:26]} Rc5 {[%emt 0:00:49]} 48. Rd3 {[%emt 0:01:57]} Rb5 {[%emt 0:00:33]} 49. Rd1 {[%emt 0:01:29]} Rc5 {[%emt 0:00:12]} 50. Rd3 {[%emt 0:00:37]} Rb5 {[%emt 0:00:05]} 51. Kf4 {[%emt 0:05:43]} Rc5 {[%emt 0:00:52]} 52. Kf3 {[%emt 0:00:35]} 1/2-1/2

[Event "EYCC 2017"]
[Site "Mamaia"]
[Date "2017.09.11"]
[Round "6"]
[White "Hercog, Nusa"]
[Black "Lehaci, Miruna-Daria"]
[Result "1/2-1/2"]
[ECO "E11"]
[WhiteElo "2034"]
[BlackElo "1914"]
[Annotator "NA RC"]
[PlyCount "142"]
[EventDate "2017.??.??"]
[EventType "swiss"]
[EventCountry "ROU"]
[SourceTitle "playchess.com"]
[Source "ChessBase"]
[SourceQuality "1"]
[TimeControl "40/5400+30:1800+30"]

1. d4 {[%emt 0:00:00]} e6 {[%emt 0:00:05]} 2. c4 {[%emt 0:00:00]} Nf6 {[%emt 0:00:05]} 3. Nf3 {[%emt 0:00:00]} Bb4+ {[%emt 0:00:05]} 4. Nbd2 {[%emt 0:00:09]} b6 {[%emt 0:00:09]} 5. a3 {[%emt 0:00:20]} Bxd2+ {[%emt 0:00:05]} 6. Qxd2 {[%emt 0:00:23]} Bb7 {[%emt 0:00:13]} 7. e3 {[%emt 0:00:30]} d6 {[%emt 0:01:02]} 8. Be2 {[%emt 0:01:02]} O-O {[%emt 0:00:16]} 9. O-O {[%emt 0:00:20]} a5 {[%emt 0:00:05]} 10. b3 {[%emt 0:01:11]} Nbd7 {[%emt 0:01:20]} 11. Bb2 {[%emt 0:01:17]} Qe7 {[%emt 0:04:38]} 12. Rfd1 {[%emt 0:08:33]} Ne4 {[%emt 0:06:01]} 13. Qc2 {[%emt 0:01:07]} Ndf6 {[%emt 0:02:31]} 14. Bd3 {[%emt 0:05:08]} c5 {[%emt 0:06:41]} 15. Rac1 {[%emt 0:07:22]} Bc6 {[%emt 0:08:25]} 16. a4 {[%emt 0:05:04]} Rac8 {[%emt 0:23:11]} 17. Ne1 {[%emt 0:14:11]} d5 {[%emt 0:10:34]} 18. f3 {[%emt 0:14:27]} Nd6 {[%emt 0:02:05]} 19. dxc5 {[%emt 0:02:45]} bxc5 {[%emt 0:00:39]} 20. Bxf6 {[%emt 0:05:08]} Qxf6 {[%emt 0:00:07]} 21. Bxh7+ {[%emt 0:00:24]} Kh8 {[%emt 0:00:06]} 22. Bd3 {[%emt 0:02:50]} d4 {[%emt 0:05:42]} 23. exd4 {[%emt 0:02:57]} cxd4 {[%emt 0:00:10]} 24. Qd2 {[%emt 0:02:59]} Nb7 {[%emt 0:01:55]} 25. Bc2 {[%emt 0:02:40]} e5 {[%emt 0:08:17]} 26. Nd3 {[%emt 0:04:04]} Rfe8 {[%emt 0:05:08]} 27. Nf2 {[%emt 0:02:02]} Kg8 {[%emt 0:03:19]} 28. Ng4 {[%emt 0:01:33]} Qe6 {[%emt 0:01:39]} 29. Qg5 {[%emt 0:01:48]} f6 {[%emt 0:03:49]} 30. Qg6 {[%emt 0:01:49]} e4 {[%emt 0:05:06]} 31. fxe4 {[%emt 0:03:57]} f5 {[%emt 0:00:30]} 32. Nh6+ {[%emt 0:01:09]} Kf8 {[%emt 0:00:14]} 33. Qxe6 {[%emt 0:00:50]} Rxe6 {[%emt 0:00:06]} 34. Nxf5 {[%emt 0:00:07]} Bxe4 {[%emt 0:00:24]} 35. Nxd4 {[%emt 0:02:13]} Re7 {[%emt 0:00:24]} 36. Rf1+ {[%emt 0:00:35]} Kg8 {[%emt 0:00:09]} 37. Bxe4 {[%emt 0:01:34]} Rxe4 {[%emt 0:00:05]} 38. Nb5 {[%emt 0:01:04]} Re2 {[%emt 0:01:15]} 39. Rce1 {[%emt 0:01:19]} Rb2 {[%emt 0:00:33]} 40. Re7 {[%emt 0:00:00]} Nc5 {[%emt 0:00:16]} 41. Nd6 {[%emt 0:10:49]} Rd8 {[%emt 0:02:11]} 42. Ne8 {[%emt 0:02:06]} Rd7 {[%emt 0:02:42]} 43. Rxd7 {[%emt 0:00:51]} Nxd7 {[%emt 0:00:07]} 44. Rd1 {[%emt 0:03:57]} Ne5 {[%emt 0:02:53]} 45. Nd6 {[%emt 0:06:39]} Rxb3 {[%emt 0:04:42]} 46. h3 {[%emt 0:00:30]} Rb4 {[%emt 0:02:20]} 47. Rd5 {[%emt 0:00:33]} Nxc4 {[%emt 0:00:33]} 48. Nxc4 {[%emt 0:00:07]} Rxc4 {[%emt 0:00:05]} 49. Rxa5 {[%emt 0:00:03]} Kf7 {[%emt 0:00:19]} 50. Ra8 {[%emt 0:00:26]} Kf6 {[%emt 0:00:32]} 51. a5 {[%emt 0:00:47]} Kg5 {[%emt 0:00:47]} 52. a6 {[%emt 0:01:11]} Ra4 {[%emt 0:00:45]} 53. a7 {[%emt 0:00:57]} Ra2 {[%emt 0:00:37]} 54. Kh2 {[%emt 0:00:46]} Ra3 {[%emt 0:03:19]} 55. Kg1 {[%emt 0:00:44]} Ra2 {[%emt 0:00:06]} 56. Kf1 {[%emt 0:00:19]} Ra1+ {[%emt 0:01:26]} 57. Ke2 {[%emt 0:00:11]} Ra2+ {[%emt 0:00:04]} 58. Kd3 {[%emt 0:00:40]} Ra3+ {[%emt 0:00:49]} 59. Kc4 {[%emt 0:00:38]} Ra1 {[%emt 0:00:14]} 60. Kd5 {[%emt 0:01:04]} Ra6 {[%emt 0:02:51]} 61. g4 {[%emt 0:01:14]} Ra1 {[%emt 0:02:28]} 62. Ke6 {[%emt 0:00:37]} Kg6 {[%emt 0:06:38]} 63. h4 {[%emt 0:01:11]} Re1+ {[%emt 0:00:28]} 64. Kd5 {[%emt 0:01:50]} Rd1+ {[%emt 0:00:05]} 65. Ke4 {[%emt 0:00:43]} Re1+ {[%emt 0:00:14]} 66. Kd3 {[%emt 0:00:26]} Ra1 {[%emt 0:01:17]} 67. h5+ {[%emt 0:02:04]} Kh7 {[%emt 0:00:07]} 68. g5 {[%emt 0:02:28]} g6 {[%emt 0:00:53]} 69. h6 {[%emt 0:00:26]} Rd1+ {[%emt 0:00:51]} 70. Kc2 {[%emt 0:00:05]} Ra1 {[%emt 0:00:06]} 71. Kb2 {[%emt 0:01:00]} Ra5 {[%emt 0:00:27]} 1/2-1/2